bitfinex-derivatives/quotes_BTCF0:USTF0_20251125
["timestamp","ask_amount","ask_price","bid_price","bid_amount"]
[1764031869154,0.05443,88071.0,88070.0,0.01537031]
[1764031869365,0.05653361,88071.0,88070.0,0.0313974]
[1764031869567,0.05653361,88071.0,88070.0,0.4913974]
[1764031869754,0.05653361,88071.0,88070.0,0.00017031]
[1764031869955,0.0657906,88054.0,88053.0,0.0152]
[1764031870160,0.06789421,88054.0,88053.0,0.4552]
[1764031870473,0.06789421,88054.0,88053.0,0.0152]
[1764031870661,0.06789421,88054.0,88053.0,0.4452]
[1764031870861,0.06789421,88054.0,88053.0,0.0152]
[1764031871569,0.06789421,88054.0,88053.0,0.4652]
[1764031872170,0.06789421,88054.0,88053.0,0.0152]
[1764031872470,0.06889421,88054.0,88053.0,0.4452]
[1764031872660,0.06889421,88054.0,88053.0,0.0152]
[1764031873271,0.06889421,88054.0,88053.0,0.3952]
[1764031873568,0.06889421,88054.0,88053.0,0.0152]
[1764031873869,0.06889421,88054.0,88053.0,0.4652]
[1764031874066,0.05753361,88054.0,88053.0,0.3852]
[1764031874275,0.05753361,88054.0,88053.0,0.40122709]
[1764031874457,0.05753361,88054.0,88053.0,0.45122709]
[1764031875571,0.00310361,88054.0,88053.0,0.45122709]
[1764031875866,0.0113605,88055.0,88053.0,0.45122709]
[1764031876077,0.0613405,88055.0,88054.0,0.02176]
[1764031876373,0.0613405,88055.0,88054.0,0.39307803]
[1764031876771,0.04998,88055.0,88054.0,0.40395803]
[1764031879875,0.04998,88055.0,88054.0,0.02395803]
[1764031880472,0.04998,88055.0,88054.0,0.44395803]
[1764031883677,0.04998,88055.0,88054.0,0.02395803]
[1764031883972,0.05098,88055.0,88054.0,0.02395803]
[1764031884279,0.05198,88055.0,88054.0,0.39395803]
[1764031884668,0.05198,88055.0,88054.0,0.45395803]
[1764031885069,0.05198,88055.0,88054.0,0.02395803]
[1764031885374,0.05198,88055.0,88054.0,0.47395803]
[1764031885781,0.05198,88055.0,88054.0,0.02395803]
[1764031885980,0.05198,88055.0,88054.0,0.45395803]
[1764031886279,0.05198,88055.0,88054.0,0.02395803]
[1764031886870,0.05198,88055.0,88054.0,0.00219803]
[1764031887071,0.05198,88055.0,88047.0,0.0331214]
[1764031887072,0.0613414,88048.0,88047.0,0.0331214]
[1764031887280,0.0613414,88048.0,88047.0,0.49531943]
[1764031887580,0.0613414,88048.0,88047.0,0.48395803]
[1764031888076,0.0613414,88048.0,88047.0,0.42219803]
[1764031888270,0.0613414,88048.0,88047.0,0.00219803]
[1764031888675,0.0613414,88048.0,88047.0,0.40307803]
[1764031889182,0.0613414,88048.0,88047.0,0.02395803]
[1764031890974,0.0113614,88048.0,88046.0,3.94e-06]
[1764031891985,0.0113614,88048.0,88046.0,0.42396197]
[1764031891986,0.02393,88047.0,88046.0,0.42396197]
[1764031892182,0.38473,88050.0,88049.0,0.02176]
[1764031892389,0.41078,88050.0,88049.0,0.45307803]
[1764031892578,0.41078,88050.0,88049.0,0.44]
[1764031892983,0.0113612,88049.0,88046.0,3.94e-06]
[1764031893184,0.04998,88047.0,88046.0,0.45000394]
[1764031893385,0.0113612,88049.0,88046.0,3.94e-06]
[1764031894594,0.0113612,88049.0,88046.0,0.44000394]
[1764031894890,0.04998,88047.0,88046.0,0.45088394]
[1764031895388,0.04998,88047.0,88046.0,0.01088394]
[1764031895592,0.04998,88047.0,88046.0,0.03532357]
[1764031895889,0.04998,88047.0,88046.0,0.43532357]
[1764031896679,0.3608,88050.0,88046.0,0.42396197]
[1764031896883,0.3998,88056.0,88055.0,0.0331205]
[1764031897087,0.3608,88056.0,88055.0,0.46531853]
[1764031897292,0.3721603,88056.0,88055.0,0.45395803]
[1764031897686,0.3960903,88056.0,88055.0,0.45395803]
[1764031897990,0.3608,88056.0,88055.0,0.45395803]
[1764031898385,0.06505,88060.0,88059.0,0.0331199]
[1764031898685,0.06505,88060.0,88059.0,0.40395803]
[1764031900093,0.039,88060.0,88059.0,0.40395803]
[1764031900293,0.0764098,88060.0,88059.0,0.40395803]
[1764031900989,0.06505,88060.0,88059.0,0.40395803]
[1764031901196,0.3608,88067.0,88061.0,0.00732]
[1764031901394,0.3608,88067.0,88061.0,0.40951803]
[1764031901593,0.3608,88067.0,88066.0,0.00698]
[1764031901785,0.3608,88067.0,88066.0,0.40917803]
[1764031901982,0.3608,88084.0,88083.0,0.0183369]
[1764031902193,0.3608,88084.0,88083.0,0.38917803]
[1764031902907,0.01419,88088.0,88087.0,0.00698]
[1764031903191,0.02309031,88092.0,88091.0,0.00698]
[1764031903398,0.02309031,88092.0,88091.0,0.44917803]
[1764031903887,0.04887031,88092.0,88091.0,0.44917803]
[1764031909504,0.00017031,88092.0,88091.0,0.80997803]
[1764031909801,0.01419,88109.0,88108.0,0.00664]
[1764031910002,0.01419,88109.0,88108.0,0.00883803]
[1764031910199,0.06289,88109.0,88108.0,0.46883803]
[1764031910604,0.3608,88114.0,88113.0,0.00664]
[1764031910792,0.3608,88114.0,88113.0,0.38883803]
[1764031910992,0.00017031,88122.0,88115.0,0.00664]
[1764031911195,0.00017031,88122.0,88115.0,0.40883803]
[1764031911401,0.04887031,88122.0,88121.0,0.00664]
[1764031911597,0.00017031,88122.0,88121.0,0.42883803]
[1764031912600,0.00117031,88122.0,88121.0,0.42883803]
[1764031912801,0.00217031,88122.0,88121.0,0.42883803]
[1764031913896,0.3608,88131.0,88121.0,0.42883803]
[1764031913897,0.3608,88131.0,88125.0,0.0023]
[1764031914098,0.3608,88131.0,88125.0,0.55373803]
[1764031914497,0.04898369,88126.0,88125.0,0.05449803]
[1764031914702,0.04898369,88126.0,88125.0,0.28449803]
[1764031914999,0.04898369,88126.0,88125.0,0.00449803]
[1764031915803,0.04898369,88126.0,88125.0,0.23334803]
[1764031916900,0.04898369,88126.0,88125.0,0.00334803]
[1764031917194,0.04238,88117.0,88111.0,0.3608]
[1764031917400,0.04238,88113.0,88112.0,0.00219803]
[1764031917708,0.04238,88113.0,88112.0,0.41219803]
[1764031918800,0.40318,88113.0,88112.0,0.41219803]
[1764031920310,0.02103,88113.0,88112.0,0.41219803]
[1764031920503,0.05573,88120.0,88115.0,0.0113526]
[1764031920702,0.05573,88120.0,88119.0,0.00219803]
[1764031920907,0.05573,88120.0,88119.0,0.38219803]
[1764031921498,0.01335,88120.0,88119.0,0.45219803]
[1764031921809,0.3608,88121.0,88119.0,0.45219803]
[1764031922507,0.3608,88121.0,88120.0,0.0113521]
[1764031922695,0.00028369,88126.0,88123.0,0.0113516]
[1764031922899,0.00028369,88126.0,88125.0,0.00219803]
[1764031923909,0.00028369,88126.0,88125.0,0.01354943]
[1764031924411,0.00028369,88126.0,88125.0,0.26354943]
[1764031926117,0.00028369,88126.0,88125.0,0.44274943]
[1764031926907,0.3608,88140.0,88133.0,0.0113504]
[1764031927108,0.3608,88140.0,88133.0,0.82434843]
[1764031927308,2.1e-07,88134.0,88133.0,0.82434843]
[1764031928509,2.1e-07,88134.0,88133.0,0.81299803]
[1764031929107,0.04238021,88134.0,88133.0,0.81299803]
[1764031929315,0.04238021,88134.0,88133.0,0.45219803]
[1764031929515,0.04238021,88134.0,88133.0,0.00219803]
[1764031930017,0.04238,88126.0,88125.0,0.00017021]
[1764031930216,0.4145313,88126.0,88125.0,0.44236824]
[1764031930628,0.04238,88126.0,88125.0,0.44236824]
[1764031930822,2.1e-07,88134.0,88129.0,0.0113509]
[1764031931112,0.02278021,88134.0,88133.0,0.00219803]
[1764031931315,0.02278021,88134.0,88133.0,0.38219803]
[1764031931316,0.00100021,88134.0,88133.0,0.38219803]
[1764031931817,2.1e-07,88134.0,88133.0,0.38219803]
[1764031932411,0.04507021,88134.0,88133.0,0.38219803]
[1764031932812,2.1e-07,88134.0,88133.0,0.38219803]
[1764031936420,0.04507021,88134.0,88133.0,0.38219803]
[1764031937510,0.04507021,88134.0,88133.0,0.00219803]
[1764031937719,0.0564213,88126.0,88125.0,0.00017021]
[1764031938022,0.0564213,88126.0,88125.0,0.39017021]
[1764031938431,0.0564213,88126.0,88125.0,0.39236824]
[1764031938716,0.0564213,88126.0,88125.0,0.00236824]
[1764031939417,0.08203465,88126.0,88125.0,0.00236824]
[1764031939619,0.07068335,88126.0,88125.0,0.44236824]
[1764031940012,0.04739335,88126.0,88125.0,0.44236824]
[1764031940213,0.0137,88128.0,88125.0,0.44236824]
[1764031940613,0.0564213,88126.0,88125.0,0.00017021]
[1764031940815,0.03548,88101.0,88100.0,0.26730449]
[1764031941016,0.05877,88101.0,88100.0,0.37219803]
[1764031942026,0.0137,88101.0,88100.0,0.37219803]
[1764031943325,0.05877,88101.0,88100.0,0.37219803]
[1764031943718,0.05877,88101.0,88100.0,0.46219803]
[1764031943915,0.05877,88101.0,88100.0,0.46]
[1764031944426,0.04507,88093.0,88092.0,0.00017021]
[1764031944617,0.04507,88093.0,88092.0,0.42236824]
[1764031944812,0.0564256,88093.0,88092.0,0.42236824]
[1764031945024,0.04507,88093.0,88092.0,0.42236824]
[1764031945822,0.40587,88093.0,88092.0,0.46236824]
[1764031946125,0.40587,88093.0,88092.0,0.00236824]
[1764031947225,0.40687,88093.0,88092.0,0.00236824]
[1764031947521,0.40787,88093.0,88092.0,0.00236824]
[1764031947724,0.40787,88093.0,88092.0,0.00017021]
[1764031948624,0.40787,88093.0,88092.0,0.38017021]
[1764031949018,0.40787,88093.0,88092.0,0.40236824]
[1764031949620,0.40787,88093.0,88092.0,0.00236824]
[1764031949933,0.40787,88093.0,88092.0,0.46236824]
[1764031950319,0.4192256,88093.0,88092.0,0.46236824]
[1764031950520,0.4172256,88093.0,88092.0,0.46236824]
[1764031950932,0.40587,88093.0,88092.0,0.46236824]
[1764031952131,0.40587,88093.0,88092.0,0.42236824]
[1764031953429,0.40687,88093.0,88092.0,0.00236824]
[1764031953830,0.40687,88093.0,88092.0,0.00017021]
[1764031954535,0.40787,88093.0,88092.0,0.00017021]
[1764031955732,0.40787,88093.0,88092.0,0.40017021]
[1764031955923,0.40787,88093.0,88092.0,0.00017021]
[1764031956128,0.40787,88093.0,88092.0,0.39017021]
[1764031956330,0.40787,88093.0,88092.0,0.39236824]
[1764031956731,0.40687,88093.0,88092.0,0.39236824]
[1764031956930,0.40587,88093.0,88092.0,0.00236824]
[1764031957131,0.40587,88093.0,88092.0,0.45236824]
[1764031957334,0.04507,88087.0,88086.0,0.00028382]
[1764031957543,0.05862433,88087.0,88086.0,0.00028382]
[1764031969044,0.05506898,88087.0,88086.0,0.00028382]
[1764031969735,0.05506898,88087.0,88086.0,0.04521382]
[1764031971149,0.05506898,88087.0,88086.0,0.02350382]
[1764031971447,0.05506898,88087.0,88086.0,0.00028382]
[1764031976155,0.05506898,88087.0,88086.0,0.04601382]
[1764031976749,0.05506898,88087.0,88086.0,0.02350382]
[1764031977452,0.05506898,88087.0,88086.0,0.00028382]
[1764031979655,0.05506898,88087.0,88086.0,0.04398382]
[1764031980254,0.05506898,88087.0,88086.0,0.00028382]
[1764031980659,0.0558674,88079.0,88078.0,0.00030578]
[1764031980861,1.04810543,88079.0,88078.0,0.00030578]
[1764031981154,0.0558697,88061.0,88060.0,0.05644]
[1764031981354,0.0558697,88061.0,88060.0,0.42644]
[1764031981355,0.05806773,88061.0,88060.0,0.42644]
[1764031981746,0.0113603,88056.0,88053.0,0.08167624]
[1764031981948,0.0113603,88056.0,88046.0,0.01326394]
[1764031981949,0.0113615,88047.0,88046.0,0.00017426]
[1764031982155,0.0692734,88032.0,88031.0,0.08167624]
[1764031982357,0.04451,88025.0,88024.0,0.05495745]
[1764031982554,0.00219803,88025.0,88024.0,0.46569012]
[1764031982855,0.00119803,88025.0,88024.0,0.46769267]
[1764031983054,0.00119803,88025.0,88024.0,0.86769267]
[1764031983659,0.00019803,88025.0,88024.0,0.86769267]
[1764031984161,0.3608,88030.0,88029.0,0.0550638]
[1764031984355,0.00013557,88032.0,88031.0,0.0447]
[1764031984660,0.00013557,88032.0,88031.0,0.48689803]
[1764031984858,0.3608,88039.0,88031.0,0.48689803]
[1764031985162,0.011362,88043.0,88042.0,0.0437]
[1764031985462,0.011362,88043.0,88042.0,0.46589803]
[1764031987559,0.00017032,88051.0,88050.0,0.0550611]
[1764031987764,3.2e-07,88051.0,88050.0,0.50725913]
[1764031988061,3.2e-07,88051.0,88050.0,0.49589803]
[1764031991155,0.3608,88060.0,88059.0,0.0556899]
[1764031991363,0.3953684,88071.0,88070.0,0.04487]
[1764031991553,0.3721584,88071.0,88070.0,0.04706803]
[1764031991756,0.3608,88071.0,88070.0,0.47706803]
[1764031992462,0.3618,88071.0,88070.0,0.47706803]
[1764031993962,0.001,88071.0,88070.0,0.47706803]
[1764031994464,0.36097032,88079.0,88078.0,0.04487]
[1764031994663,0.41723772,88079.0,88078.0,0.04706803]
[1764031995458,0.36097032,88079.0,88078.0,0.04706803]
[1764031995863,0.36197032,88079.0,88078.0,0.31706803]
[1764031996367,0.36297032,88079.0,88078.0,0.31706803]
[1764031997866,0.00217032,88079.0,88078.0,0.31706803]
[1764031999964,0.02538032,88079.0,88078.0,0.31706803]
[1764032000362,0.00217032,88079.0,88078.0,0.31706803]
[1764032001065,0.00217032,88079.0,88078.0,0.67786803]
[1764032002163,0.3608,88098.0,88097.0,0.04487]
[1764032002373,0.3608,88098.0,88097.0,0.48706803]
[1764032002965,0.3953649,88098.0,88097.0,0.48706803]
[1764032003272,0.4190649,88098.0,88097.0,0.42706803]
[1764032003472,0.4190649,88098.0,88097.0,0.00219803]
[1764032003868,0.0562659,88090.0,88089.0,0.00017032]
[1764032004072,0.4170659,88090.0,88089.0,0.02190032]
[1764032004674,0.4170659,88090.0,88089.0,0.00017032]
[1764032004973,0.0562671,88081.0,88080.0,0.05874]
[1764032005173,0.0562671,88081.0,88080.0,0.49093803]
[1764032006376,0.0572671,88081.0,88080.0,0.49093803]
[1764032006675,0.002,88081.0,88080.0,0.49093803]
[1764032007868,0.0133571,88081.0,88080.0,0.49093803]
[1764032008067,0.0365671,88081.0,88080.0,0.49093803]
[1764032008572,0.0133571,88081.0,88080.0,0.49093803]
[1764032008975,0.002,88081.0,88080.0,0.49093803]
[1764032009769,0.3608,88090.0,88089.0,0.0562261]
[1764032009973,0.3608,88090.0,88089.0,0.49842413]
[1764032010569,0.3608,88090.0,88089.0,0.48706803]
[1764032010969,0.40571,88090.0,88089.0,0.48706803]
[1764032011166,0.40571,88090.0,88089.0,0.04706803]
[1764032011366,0.40671,88090.0,88089.0,0.04706803]
[1764032011587,0.40671,88090.0,88089.0,0.46706803]
[1764032011769,0.40771,88090.0,88089.0,0.46706803]
[1764032012075,0.40771,88090.0,88089.0,0.50706803]
[1764032012776,0.3628,88090.0,88089.0,0.50706803]
[1764032014880,0.002,88090.0,88089.0,0.50706803]
[1764032015175,0.0007161,88090.0,88089.0,0.50706803]
[1764032015376,0.3608,88099.0,88098.0,0.04487]
[1764032015576,0.3608,88099.0,88098.0,0.47706803]
[1764032016276,0.3953648,88099.0,88098.0,0.47706803]
[1764032016472,0.4170648,88099.0,88098.0,0.02392803]
[1764032018075,0.0562658,88091.0,88090.0,0.04504032]
[1764032018381,0.4170658,88091.0,88090.0,0.41236835]
[1764032018568,0.4170658,88091.0,88090.0,0.45723835]
[1764032019883,0.4180658,88091.0,88090.0,0.45723835]
[1764032020976,0.4190658,88091.0,88090.0,0.45723835]
[1764032021375,0.3628,88091.0,88090.0,0.45723835]
[1764032021775,0.40809,88091.0,88090.0,0.45723835]
[1764032022484,0.40709,88091.0,88090.0,0.45723835]
[1764032022684,0.38506,88091.0,88090.0,0.45723835]
[1764032023080,0.3618,88091.0,88090.0,0.45723835]
[1764032023483,0.001,88091.0,88090.0,0.53891459]
[1764032023679,0.0113555,88094.0,88091.0,0.0113558]
[1764032023987,0.0113555,88094.0,88093.0,0.04679803]
[1764032024287,0.0113551,88097.0,88093.0,0.44679803]
[1764032024480,0.0113551,88097.0,88096.0,0.05758]
[1764032024681,0.0113551,88097.0,88096.0,0.51977803]
[1764032024882,0.3608,88101.0,88096.0,0.47517803]
[1764032025081,0.3721546,88101.0,88100.0,0.0446]
[1764032025282,0.3608,88101.0,88100.0,0.45679803]
[1764032027880,0.01152422,88106.0,88105.0,0.0446]
[1764032028086,0.00017032,88106.0,88105.0,0.49679803]
[1764032028285,0.02343032,88106.0,88105.0,0.49679803]
[1764032028789,0.00017032,88106.0,88105.0,0.49679803]
[1764032029595,0.00017032,88106.0,88105.0,0.57847427]
[1764032030295,0.00017032,88106.0,88105.0,0.49679803]
[1764032030497,0.00017032,88106.0,88105.0,0.57847427]
[1764032030688,0.00017032,88106.0,88105.0,0.49679803]
[1764032032092,0.04546032,88106.0,88105.0,0.57836403]
[1764032032300,0.04546032,88106.0,88105.0,0.49679803]
[1764032035904,0.04546032,88106.0,88105.0,0.04679803]
[1764032036101,0.04646032,88106.0,88105.0,0.04679803]
[1764032036293,0.04646032,88106.0,88105.0,0.00219803]
[1764032038698,0.04646032,88106.0,88105.0,0.48704803]
[1764032039104,0.04646032,88106.0,88105.0,0.04704803]
[1764032039295,0.04646032,88106.0,88105.0,0.02441803]
[1764032039495,0.04646032,88106.0,88105.0,0.46441803]
[1764032039704,0.04646032,88106.0,88105.0,0.02441803]
[1764032039908,0.04546032,88106.0,88105.0,0.02441803]
[1764032040103,0.04546032,88106.0,88105.0,0.00219803]
[1764032040605,0.04546032,88106.0,88105.0,0.04704803]
[1764032041496,0.04546032,88106.0,88105.0,0.02441803]
[1764032041895,0.00017032,88106.0,88105.0,0.04704803]
[1764032042102,0.00017032,88106.0,88105.0,0.45704803]
[1764032042797,0.00117032,88106.0,88105.0,0.45704803]
[1764032043198,0.00217032,88106.0,88105.0,0.45704803]
[1764032043507,0.00117032,88106.0,88105.0,0.45704803]
[1764032043703,0.00017032,88106.0,88105.0,0.45704803]
[1764032050208,0.3608,88115.0,88114.0,0.0562029]
[1764032050410,0.3608,88115.0,88114.0,0.51840093]
[1764032050919,0.0113517,88123.0,88119.0,0.0113522]
[1764032051212,0.0113517,88123.0,88122.0,0.04500803]
[1764032051408,0.0113517,88123.0,88122.0,0.46500803]
[1764032052509,0.0123517,88123.0,88122.0,0.46500803]
[1764032053109,0.0559717,88123.0,88122.0,0.46500803]
[1764032053305,0.0559717,88123.0,88122.0,0.04500803]
[1764032053509,0.0569717,88123.0,88122.0,0.04500803]
[1764032053804,0.0549725,88117.0,88116.0,0.02108]
[1764032054010,0.0549725,88117.0,88116.0,0.40108]
[1764032054211,0.0549725,88117.0,88116.0,0.02108]
[1764032055503,0.054973,88113.0,88112.0,0.00017032]
[1764032055705,0.415773,88113.0,88112.0,0.41017032]
[1764032056208,0.415773,88113.0,88112.0,0.47298032]
[1764032056403,0.415773,88113.0,88112.0,0.48900835]
[1764032056599,0.38237,88113.0,88112.0,0.48900835]
[1764032056800,0.3608,88113.0,88112.0,0.48900835]
[1764032057315,0.3618,88113.0,88112.0,0.48900835]
[1764032057515,0.001,88113.0,88112.0,0.48900835]
[1764032057714,0.0113525,88117.0,88116.0,0.04281]
[1764032057915,0.0113525,88117.0,88116.0,0.46500803]
[1764032058113,0.0113521,88120.0,88119.0,0.0113521]
[1764032058315,0.0113521,88120.0,88119.0,0.05636013]
[1764032058511,0.3608,88123.0,88122.0,0.0541618]
[1764032058726,0.00017032,88130.0,88125.0,0.0541614]
[1764032059014,0.00017032,88130.0,88125.0,0.48635943]
[1764032059212,0.3608,88131.0,88125.0,0.48635943]
[1764032059213,0.3608,88131.0,88130.0,0.04281]
[1764032059415,0.3608,88131.0,88130.0,0.44500803]
[1764032060111,0.3608,88131.0,88130.0,0.45635883]
[1764032060508,0.3608,88131.0,88130.0,0.44500803]
[1764032060913,0.3618,88131.0,88130.0,0.44500803]
[1764032061110,0.3618,88131.0,88130.0,0.45635883]
[1764032061507,0.3628,88131.0,88130.0,0.45635883]
[1764032061707,0.002,88131.0,88130.0,0.45635883]
[1764032062118,0.00017022,88139.0,88138.0,0.0541598]
[1764032062325,0.00017022,88139.0,88138.0,0.43635783]
[1764032062911,0.03308982,88139.0,88138.0,0.04500803]
[1764032063114,0.05513982,88139.0,88138.0,0.04500803]
[1764032063318,0.0549707,88131.0,88130.0,0.04298022]
[1764032063514,0.4157707,88131.0,88130.0,0.04517825]
[1764032064118,0.4157707,88131.0,88130.0,0.05344825]
[1764032064624,0.4157707,88131.0,88130.0,0.04344825]
[1764032064918,0.4167707,88131.0,88130.0,0.04344825]
[1764032065122,0.4167707,88131.0,88130.0,0.05344825]
[1764032065423,0.4167707,88131.0,88130.0,0.02344825]
[1764032065923,0.4167707,88131.0,88130.0,0.41517825]
[1764032066311,0.4167707,88131.0,88130.0,0.00017022]
[1764032066520,0.4177707,88131.0,88130.0,0.48298022]
[1764032066718,0.4177707,88131.0,88130.0,0.02125022]
[1764032067024,0.4177707,88131.0,88130.0,0.00017022]
[1764032067426,0.4177707,88131.0,88130.0,0.02125022]
[1764032068518,0.4177707,88131.0,88130.0,0.43298022]
[1764032069438,0.4177707,88131.0,88130.0,0.43517825]
[1764032070430,2.2e-07,88139.0,88130.0,0.79236825]
[1764032070620,0.02157,88157.0,88133.0,0.0113503]
[1764032070930,0.04362,88157.0,88156.0,0.00219803]
[1764032071125,0.00916,88176.0,88156.0,0.00219803]
[1764032071319,0.05632,88200.0,88196.0,0.0113423]
[1764032071524,0.00011231,88207.0,88201.0,0.0113416]
[1764032071730,0.00011231,88207.0,88205.0,0.00219803]
[1764032072024,0.04390343,88206.0,88205.0,0.38219803]
[1764032072224,0.04390343,88206.0,88205.0,0.40219803]
[1764032072634,0.04490343,88206.0,88205.0,0.40219803]
[1764032072824,0.40570343,88206.0,88205.0,0.40219803]
[1764032073128,0.40470343,88206.0,88205.0,0.40219803]
[1764032073431,0.04490343,88206.0,88205.0,0.40219803]
[1764032074122,0.04590343,88206.0,88205.0,0.40219803]
[1764032076836,0.05724443,88206.0,88205.0,0.40219803]
[1764032077140,0.05724443,88206.0,88205.0,0.00219803]
[1764032077427,0.04590343,88206.0,88205.0,0.39219803]
[1764032079233,0.04590343,88206.0,88205.0,0.00219803]
[1764032079533,0.00228343,88206.0,88205.0,0.39353913]
[1764032081936,0.04708343,88206.0,88205.0,0.08219803]
[1764032083140,0.04708343,88206.0,88205.0,0.43219803]
[1764032083330,0.04708343,88206.0,88205.0,0.39219803]
[1764032084039,0.04708343,88206.0,88205.0,0.44219803]
[1764032085449,0.04708343,88206.0,88205.0,0.40219803]
[1764032085737,0.05842443,88206.0,88205.0,0.00219803]
[1764032086044,0.05814,88191.0,88190.0,0.3914444]
[1764032086242,0.05814,88191.0,88190.0,0.50143803]
[1764032086442,0.05814,88191.0,88190.0,0.51278113]
[1764032086832,0.05814,88191.0,88190.0,0.50143803]
[1764032088944,0.0448,88199.0,88198.0,0.011342]
[1764032089134,0.0448,88199.0,88198.0,0.41219803]
[1764032089937,0.0448,88199.0,88198.0,0.00219803]
[1764032090134,0.0458,88199.0,88198.0,0.00219803]
[1764032091241,0.0458,88199.0,88198.0,0.43354003]
[1764032091837,0.0458,88199.0,88198.0,0.79434003]
[1764032092339,0.02361,88199.0,88198.0,0.83434003]
[1764032092541,0.0458,88199.0,88198.0,0.75434003]
[1764032092740,0.0458,88199.0,88198.0,0.37434003]
[1764032093039,0.4066,88199.0,88198.0,0.00219803]
[1764032096641,0.04222,88190.0,88189.0,0.57317452]
[1764032096845,0.04222,88190.0,88189.0,0.36097012]
[1764032097947,0.04222,88190.0,88189.0,0.78316815]
[1764032098138,0.04222,88190.0,88189.0,0.36316815]
[1764032098339,0.04222,88190.0,88189.0,0.75316815]
[1764032098538,0.04222,88190.0,88189.0,0.36316815]
[1764032098739,0.04222,88190.0,88189.0,0.77316815]
[1764032100139,0.04222,88190.0,88189.0,0.36316815]
[1764032100337,0.04222,88190.0,88189.0,0.76316815]
[1764032100542,0.0535631,88190.0,88189.0,0.00236815]
[1764032100742,0.0535631,88190.0,88189.0,0.00017012]
[1764032101148,0.0535631,88190.0,88172.0,0.17916]
[1764032101149,0.04222,88177.0,88176.0,0.3721449]
[1764032101351,0.02119,88177.0,88176.0,0.81434293]
[1764032102142,0.04222,88177.0,88176.0,0.79434293]
[1764032102343,0.04222,88177.0,88176.0,0.79534293]
[1764032102344,0.02119,88177.0,88176.0,0.79534293]
[1764032103451,0.04222,88177.0,88176.0,0.36399803]
[1764032104045,0.04222,88177.0,88176.0,0.001]
[1764032104246,0.0113447,88178.0,88168.0,0.00017012]
[1764032104247,0.0535658,88169.0,88168.0,0.00017012]
[1764032104447,0.04222,88169.0,88168.0,0.00236815]
[1764032105545,0.0535658,88169.0,88168.0,0.46236815]
[1764032105746,0.0535658,88169.0,88168.0,0.00236815]
[1764032105953,0.0535658,88169.0,88133.0,0.10179105]
[1764032105954,0.04222,88134.0,88133.0,0.10179105]
[1764032106141,0.04222,88129.0,88128.0,0.00011255]
[1764032106339,0.04222,88127.0,88120.0,0.2122044]
[1764032106544,0.04441803,88127.0,88126.0,0.43465]
[1764032107040,0.76601803,88127.0,88126.0,0.04518463]
[1764032107243,0.76601803,88127.0,88118.0,0.00017012]
[1764032107244,0.0535722,88119.0,88118.0,0.00017012]
[1764032107448,0.04222,88111.0,88110.0,0.04465]
[1764032107754,0.40531724,88111.0,88110.0,0.04465]
[1764032107954,0.0664034,88110.0,88109.0,0.2122044]
[1764032108155,0.02119,88102.0,88101.0,0.22433]
[1764032108347,0.38418803,88102.0,88101.0,0.59486463]
[1764032108545,0.36299803,88102.0,88101.0,0.59486463]
[1764032108747,0.36299803,88102.0,88101.0,0.60621913]
[1764032109154,0.36299803,88102.0,88101.0,0.59486463]
[1764032110848,0.36299803,88102.0,88101.0,0.59586463]
[1764032111442,0.36089921,88111.0,88110.0,0.09863]
[1764032111649,0.32589921,88111.0,88110.0,0.46916463]
[1764032112253,0.3608,88123.0,88122.0,0.05641]
[1764032112558,0.36299803,88123.0,88122.0,0.44829643]
[1764032113346,0.36097022,88131.0,88130.0,0.0677608]
[1764032113654,0.36316825,88131.0,88130.0,0.52829543]
[1764032113855,0.36316825,88131.0,88130.0,0.51694463]
[1764032114057,0.43763825,88131.0,88130.0,0.48694463]
[1764032114553,0.36316825,88131.0,88130.0,0.49829543]
[1764032118655,0.36316825,88131.0,88130.0,0.48694463]
[1764032118854,0.43763825,88131.0,88130.0,0.48694463]
[1764032119654,0.36316825,88131.0,88130.0,0.48694463]
[1764032119863,0.41616825,88131.0,88130.0,0.48694463]
[1764032120556,0.43763825,88131.0,88130.0,0.48694463]
[1764032121359,0.36316825,88131.0,88130.0,0.48694463]
[1764032121559,0.41616825,88131.0,88130.0,0.48694463]
[1764032123570,0.36097022,88131.0,88130.0,0.66702463]
[1764032123761,0.27366022,88131.0,88130.0,0.66702463]
[1764032123960,0.3608,88139.0,88130.0,0.66702463]
[1764032123961,0.3608,88139.0,88138.0,0.0113498]
[1764032124263,0.36299803,88139.0,88138.0,0.40188443]
[1764032126265,0.36499803,88139.0,88138.0,0.40188443]
[1764032127171,0.43946803,88139.0,88138.0,0.40188443]
[1764032128371,0.36499803,88139.0,88138.0,0.40188443]
[1764032129073,0.43946803,88139.0,88138.0,0.40188443]
[1764032130168,0.41799803,88139.0,88138.0,0.40188443]
[1764032130676,0.43946803,88139.0,88138.0,0.40188443]
[1764032131877,0.43946803,88139.0,88138.0,0.39053463]
[1764032132772,0.43946803,88139.0,88138.0,0.05053463]
[1764032132979,0.43946803,88139.0,88138.0,0.39053463]
[1764032138369,0.00017022,88147.0,88146.0,0.0113487]
[1764032138561,0.00017022,88147.0,88146.0,0.60176333]
[1764032138967,0.00017022,88147.0,88146.0,0.68320551]
[1764032139174,0.00236825,88147.0,88146.0,0.68320551]
[1764032139375,0.05536825,88147.0,88146.0,0.68320551]
[1764032139570,0.05736825,88147.0,88146.0,0.68320551]
[1764032139872,0.00436825,88147.0,88146.0,0.68320551]
[1764032140278,0.07883825,88147.0,88146.0,0.60176333]
[1764032142574,0.00436825,88147.0,88146.0,0.60176333]
[1764032143180,0.00217022,88147.0,88146.0,0.60176333]
[1764032144079,0.3608,88158.0,88154.0,0.0113477]
[1764032144266,0.3608,88158.0,88157.0,0.0113473]
[1764032144471,0.3608,88158.0,88157.0,0.60168193]
[1764032144978,0.00028356,88166.0,88165.0,0.0113463]
[1764032145182,0.00028356,88166.0,88165.0,0.42188093]
[1764032145673,0.00028356,88166.0,88165.0,0.50331362]
[1764032146181,0.00028356,88166.0,88165.0,0.42188093]
[1764032146875,0.11444159,88166.0,88165.0,0.42188093]
[1764032148067,0.05848159,88166.0,88165.0,0.60164093]
[1764032148675,0.11444159,88166.0,88165.0,0.42188093]
[1764032148882,0.11444159,88166.0,88165.0,0.49187695]
[1764032149071,0.11444159,88166.0,88165.0,0.59029463]
[1764032150780,0.00011233,88174.0,88165.0,1.35109463]
[1764032151077,0.03268,88200.0,88199.0,0.0113419]
[1764032151078,0.08868,88200.0,88199.0,0.0113419]
[1764032151269,0.09087803,88200.0,88199.0,0.41187653]
[1764032151989,0.08868,88200.0,88199.0,0.41187653]
[1764032153174,0.14464,88200.0,88199.0,0.41187653]
[1764032153483,0.14683803,88200.0,88199.0,0.41187653]
[1764032155474,0.03268,88200.0,88199.0,0.41187653]
[1764032156174,0.0847,88200.0,88199.0,0.41187653]